fUST/lending_fUST_20240413
["ID","MTS","AMOUNT","RATE_DAILY","PERIOD"]
[322437416,1713000642471,-500.0,0.00037582,7]
[322437417,1713000642480,-500.0,0.00037582,7]
[322437418,1713000642490,-500.0,0.00037582,7]
[322437419,1713000642500,-342.39120222,0.00037582,7]
[322437420,1713000642509,-539.62472715,0.00037582,7]
[322437421,1713000642518,-500.0,0.00037582,7]
[322437422,1713000642528,-500.0,0.00037582,7]
[322437423,1713000642537,-1756.68,0.00037582,7]
[322437424,1713000642547,-523.11839054,0.00037582,7]
[322437425,1713000642556,-502.35220558,0.00037582,7]
[322437426,1713000642565,-502.3961917,0.00037582,7]
[322437427,1713000642574,-500.0,0.00037582,7]
[322437428,1713000642583,-500.0,0.00037582,7]
[322437429,1713000642591,-505.51477599,0.00037582,7]
[322437430,1713000642601,-505.66696559,0.00037582,7]
[322437431,1713000642612,-507.93799496,0.00037582,7]
[322437432,1713000642620,-10008.48988342,0.00037604,2]
[322437433,1713000642629,-779.90670677,0.00037604,2]
[322437434,1713000642638,-1188.91674593,0.00037604,14]
[322437435,1713000642647,-224.0839534,0.00037604,10]
[322437436,1713000642656,-285.98063394,0.00037604,2]
[322437437,1713000642665,-4080.59686492,0.00037604,2]
[322437438,1713000642674,-314.94550491,0.00037604,2]
[322437439,1713000642682,-280.64279219,0.00037604,2]
[322437440,1713000642691,-13001.0516229,0.00037604,2]
[322437441,1713000642700,-4414.35130694,0.00037604,2]
[322437442,1713000642709,-13451.999999,0.00037604,2]
[322437443,1713000642718,-151.7343223,0.00037604,2]
[322437444,1713000642727,-27861.38916606,0.00037604,2]
[322437445,1713000642736,-468.24890068,0.00037604,2]
[322437446,1713000642744,-499.999999,0.00037604,2]
[322437447,1713000642753,-429.95862147,0.00037604,2]
[322437448,1713000642762,-28028.74007764,0.00037604,2]
[322437449,1713000642771,-2027.85478027,0.00037604,2]
[322437450,1713000642780,-1003.70539617,0.00037604,2]
[322437451,1713000642789,-1001.77944041,0.00037604,2]
[322437452,1713000642798,-2727.2599325,0.00037604,5]
[322437453,1713000642807,-975.31224978,0.00037604,2]
[322437454,1713000642816,-152.60882266,0.00037604,22]
[322437455,1713000642825,-152.60882266,0.00037604,22]
[322437456,1713000642834,-219.28494068,0.00037646,7]
[322437457,1713000642843,-237.93432944,0.00037647,2]
[322437458,1713000642852,-1014.05805107,0.00037647,4]
[322437459,1713000642862,-359.50186365,0.00037647,20]
[322437460,1713000642872,-1566.2612075,0.00037647,4]
[322437461,1713000642881,-3767.53770097,0.00037647,4]
[322437462,1713000642890,-190.13793507,0.00037647,4]
[322437463,1713000642900,-18625.42501199,0.00037647,4]
[322437464,1713000642909,-276.22880515,0.00037647,2]
[322437465,1713000642918,-385.03819322,0.00037647,4]
[322437466,1713000642928,-177.0,0.000382,13]
[322437467,1713000642937,-373.66,0.00038356,4]
[322437468,1713000642946,-905.0,0.00038896,5]
[322437469,1713000642954,-19690.4148578,0.00038999,3]
[322437470,1713000642964,-400.000001,0.00039,2]
[322437471,1713000642973,-500.0,0.00039452,7]
[322437472,1713000642982,-1246.42,0.00039452,7]
[322437473,1713000642991,-500.0,0.00039452,7]
[322437474,1713000643000,-2796.89,0.00039497,7]
[322437475,1713000643010,-3232.16,0.00039497,7]
[322437476,1713000643019,-500.0,0.00039497,7]
[322437478,1713000643028,-1070.51,0.00039497,7]
[322437479,1713000643037,-1015.16,0.00039497,7]
[322437481,1713000643046,-897.77,0.00039497,7]
[322437482,1713000643055,-512.13,0.00039497,7]
[322437483,1713000643065,-1191.86,0.00039497,7]
[322437484,1713000643074,-500.0,0.00039497,7]
[322437485,1713000643083,-4113.97,0.00039497,7]
[322437486,1713000643092,-1515.53,0.00039497,7]
[322437488,1713000643100,-1549.63,0.00039497,7]
[322437490,1713000643110,-670.34,0.00039498,7]
[322437491,1713000643119,-500.0,0.00039498,7]
[322437492,1713000643128,-300.0,0.00039498,7]
[322437494,1713000643138,-500.0,0.00039498,7]
[322437496,1713000643148,-500.0,0.00039498,7]
[322437498,1713000643159,-500.0,0.00039498,7]
[322437500,1713000643168,-500.0,0.00039498,7]
[322437502,1713000643177,-500.0,0.00039498,7]
[322437504,1713000643186,-500.0,0.00039498,7]
[322437507,1713000643195,-505.54955557,0.00039498,7]
[322437509,1713000643204,-500.0,0.00039498,7]
[322437511,1713000643214,-500.0,0.00039498,7]
[322437513,1713000643225,-500.0,0.00039498,7]
[322437515,1713000643234,-841.38,0.00039498,7]
[322437517,1713000643243,-500.0,0.00039498,7]
[322437519,1713000643253,-508.9012167,0.00039498,7]
[322437520,1713000643262,-500.0,0.00039498,7]
[322437521,1713000643271,-500.0,0.00039498,7]
[322437522,1713000643281,-508.52981161,0.00039498,7]
[322437523,1713000643291,-500.0,0.00039498,7]
[322437524,1713000643301,-500.0,0.00039498,7]
[322437525,1713000643310,-500.0,0.00039498,7]
[322437526,1713000643319,-500.0,0.00039498,7]
[322437527,1713000643329,-500.0,0.00039498,7]
[322437528,1713000643339,-291.63521212,0.00039498,7]
[322437529,1713000643349,-500.0,0.00039498,7]
[322437530,1713000643359,-500.0,0.00039498,7]
[322437531,1713000643369,-500.0,0.00039498,7]
[322437532,1713000643378,-500.0,0.00039498,7]
[322437533,1713000643386,-500.0,0.00039498,7]
[322437534,1713000643395,-500.0,0.00039498,7]
[322437535,1713000643404,-650.58,0.00039498,7]
[322437536,1713000643413,-1025.7,0.00039498,7]
[322437537,1713000643422,-500.0,0.00039498,7]
[322437538,1713000643431,-1492.16,0.00039498,7]
[322437539,1713000643439,-500.0,0.00039498,7]
[322437540,1713000643452,-500.0,0.00039498,7]
[322437541,1713000643461,-500.0,0.00039498,7]
[322437543,1713000643470,-500.0,0.00039498,7]
[322437544,1713000643480,-500.0,0.00039498,7]
[322437545,1713000643489,-500.0,0.00039498,7]
[322437546,1713000643498,-778.27,0.00039498,7]
[322437547,1713000643507,-500.0,0.00039498,7]
[322437548,1713000643516,-511.58418896,0.00039498,7]
[322437549,1713000643526,-483.67862824,0.00039498,7]
[322437550,1713000643536,-188.72163887,0.00039498,7]
[322437551,1713000643545,-1258.97,0.00039498,7]
[322437552,1713000643554,-500.0,0.00039498,7]
[322437553,1713000643563,-500.0,0.00039498,7]
[322437554,1713000643572,-7417.99,0.00039498,7]
[322437555,1713000643581,-500.0,0.00039498,7]
[322437556,1713000643590,-412.49906291,0.00039498,7]
[322437557,1713000643599,-838.85,0.00039498,7]
[322437558,1713000643609,-500.0,0.00039498,7]
[322437559,1713000643620,-500.0,0.00039498,7]
[322437560,1713000643629,-1477.96,0.00039498,7]
[322437561,1713000643639,-500.0,0.00039498,7]
[322437562,1713000643649,-896.15,0.00039498,7]
[322437563,1713000643658,-500.0,0.00039498,7]
[322437564,1713000643668,-508.62523054,0.00039498,7]
[322437565,1713000643677,-504.09628153,0.00039498,7]
[322437567,1713000643687,-500.0,0.00039498,7]
[322437568,1713000643697,-500.0,0.00039498,7]
[322437569,1713000643707,-500.0,0.00039498,7]
[322437570,1713000643716,-500.0,0.00039498,7]
[322437571,1713000643725,-500.0,0.00039498,7]
[322437572,1713000643734,-500.0,0.00039498,7]
[322437573,1713000643745,-500.0,0.00039498,7]
[322437574,1713000643755,-151.0,0.00039498,2]
[322437575,1713000643766,-500.0,0.00039498,7]
[322437576,1713000643775,-151.0,0.00039498,2]
[322437577,1713000643785,-500.0,0.00039498,7]
[322437579,1713000643795,-500.0,0.00039498,7]
[322437580,1713000643805,-500.0,0.00039498,7]
[322437581,1713000643815,-500.0,0.00039498,7]
[322437582,1713000643825,-516.85798279,0.00039498,7]
[322437583,1713000643834,-500.0,0.00039498,7]
[322437584,1713000643843,-500.0,0.00039498,7]
[322437585,1713000643853,-2673.64,0.00039498,7]
[322437586,1713000643862,-500.0,0.00039498,7]
[322437587,1713000643871,-913.65,0.00039498,7]
[322437588,1713000643881,-151.0,0.00039498,2]
[322437589,1713000643890,-500.0,0.00039498,7]
[322437590,1713000643899,-151.0,0.00039498,2]
[322437591,1713000643909,-500.0,0.00039498,7]
[322437592,1713000643918,-500.0,0.00039498,7]
[322437593,1713000643927,-500.0,0.00039498,7]
[322437594,1713000643937,-1188.13,0.00039498,7]
[322437595,1713000643946,-3063.09,0.00039498,7]
[322437596,1713000643955,-500.0,0.00039498,7]
[322437597,1713000643964,-500.0,0.00039498,7]
[322437598,1713000643975,-500.0,0.00039498,7]
[322437599,1713000643985,-502.09780536,0.00039498,7]
[322437600,1713000643994,-2418.0,0.00039498,7]
[322437601,1713000644003,-500.0,0.00039498,7]
[322437603,1713000644013,-1099.48,0.00039498,7]
[322437605,1713000644022,-554.51550462,0.00039498,7]
[322437607,1713000644031,-500.0,0.00039498,7]
[322437608,1713000644041,-537.97,0.00039498,7]
[322437609,1713000644050,-1649.42,0.00039498,7]
[322437610,1713000644061,-505.95434018,0.00039498,7]
[322437612,1713000644073,-500.0,0.00039498,7]
[322437613,1713000644083,-500.0,0.00039498,7]
[322437614,1713000644093,-500.0,0.00039498,7]
[322437615,1713000644101,-394.69421239,0.00039498,7]
[322437616,1713000644112,-500.0,0.00039498,7]
[322437617,1713000644121,-507.12892981,0.00039498,7]
[322437618,1713000644130,-500.0,0.00039498,7]
[322437619,1713000644139,-500.0,0.00039498,7]
[322437620,1713000644148,-500.0,0.00039498,7]
[322437621,1713000644157,-500.0,0.00039498,7]
[322437622,1713000644166,-233.958041,0.00039498,2]
[322437623,1713000644175,-1237.36,0.00039498,7]
[322437624,1713000644184,-500.0,0.00039498,7]
[322437625,1713000644193,-233.958041,0.00039498,2]
[322437626,1713000644202,-151.0,0.00039498,2]
[322437627,1713000644211,-500.0,0.00039498,7]
[322437628,1713000644220,-793.65,0.00039498,7]
[322437629,1713000644229,-500.0,0.00039498,7]
[322437630,1713000644238,-500.0,0.00039498,7]
[322437631,1713000644247,-569.95,0.00039498,7]
[322437632,1713000644256,-151.0,0.00039498,2]
[322437633,1713000644265,-504.24950144,0.00039498,7]
[322437634,1713000644274,-500.0,0.00039498,7]
[322437635,1713000644283,-500.0,0.00039498,7]
[322437636,1713000644291,-151.0,0.00039498,2]
[322437637,1713000644300,-500.0,0.00039498,7]
[322437638,1713000644309,-561.14403191,0.00039498,7]
[322437639,1713000644318,-500.0,0.00039498,7]
[322437640,1713000644327,-500.0,0.00039498,7]
[322437641,1713000644337,-399.308516,0.00039498,2]
[322437642,1713000644345,-36226.99,0.00039498,7]
[322437643,1713000644354,-399.308516,0.00039498,2]
[322437644,1713000644363,-500.0,0.00039498,7]
[322437645,1713000644373,-500.0,0.00039498,7]
[322437646,1713000644381,-500.0,0.00039498,7]
[322437647,1713000644390,-501.98167046,0.00039498,7]
[322437648,1713000644400,-500.0,0.00039498,7]
[322437649,1713000644410,-504.84227026,0.00039498,7]
[322437650,1713000644419,-151.0,0.00039498,2]
[322437651,1713000644428,-500.0,0.00039498,7]
[322437652,1713000644438,-2811.5,0.00039498,7]
[322437653,1713000644448,-500.0,0.00039498,7]
[322437654,1713000644458,-500.0,0.00039498,7]
[322437655,1713000644468,-192.134917,0.00039498,2]
[322437656,1713000644477,-500.0,0.00039498,7]
[322437657,1713000644486,-192.134917,0.00039498,2]
[322437658,1713000644495,-501.56750092,0.00039498,7]
[322437659,1713000644505,-263.05878435,0.00039498,7]
[322437660,1713000644514,-500.0,0.00039498,7]
[322437661,1713000644523,-512.9696895,0.00039498,7]
[322437662,1713000644533,-500.0,0.00039498,7]
[322437663,1713000644543,-500.0,0.00039498,7]
[322437664,1713000644553,-500.0,0.00039498,7]
[322437665,1713000644561,-151.0,0.00039498,2]
[322437666,1713000644570,-810.09,0.00039498,7]
[322437667,1713000644579,-500.0,0.00039498,7]
[322437668,1713000644588,-151.0,0.00039498,2]
[322437669,1713000644597,-501.33177882,0.00039498,7]
[322437670,1713000644606,-500.0,0.00039498,7]
[322437671,1713000644615,-500.0,0.00039498,7]
[322437672,1713000644625,-2161.74,0.00039498,7]
[322437673,1713000644633,-2592.11,0.00039499,7]
[322437674,1713000644643,-898.22,0.00039499,7]
[322437675,1713000644652,-498.45758722,0.00039499,7]
[322437676,1713000644661,-500.0,0.00039499,7]
[322437677,1713000644670,-500.0,0.00039499,7]
[322437678,1713000644679,-500.0,0.00039499,7]
[322437679,1713000644688,-589.61566061,0.00039499,7]
[322437680,1713000644697,-4358.32,0.00039499,7]
[322437681,1713000644707,-500.0,0.00039499,7]
[322437682,1713000644716,-500.0,0.00039499,7]
[322437683,1713000644725,-500.0,0.00039499,7]
[322437684,1713000644735,-500.0,0.00039499,7]
[322437685,1713000644745,-587.66419,0.00039499,2]
[322437686,1713000644756,-280.812343,0.00039499,2]
[322437687,1713000644766,-587.66419,0.00039499,2]
[322437688,1713000644775,-653.11,0.00039499,7]
[322437689,1713000644784,-500.0,0.00039499,7]
[322437690,1713000644793,-1040.56,0.00039499,7]
[322437691,1713000644803,-1874.159298,0.00039499,2]
[322437692,1713000644812,-1874.159298,0.00039499,2]
[322437693,1713000644821,-500.0,0.00039499,7]
[322437694,1713000644830,-1872.421823,0.00039499,2]
[322437695,1713000644839,-1872.421823,0.00039499,2]
[322437696,1713000644848,-500.0,0.00039499,7]
[322437697,1713000644858,-500.0,0.00039499,7]
[322437698,1713000644867,-500.0,0.00039499,7]
[322437699,1713000644881,-500.0,0.00039499,7]
[322437700,1713000644902,-500.0,0.00039499,7]
[322437701,1713000644924,-500.0,0.00039499,7]
[322437702,1713000644945,-12159.52,0.00039499,7]
[322437703,1713000644968,-500.0,0.00039499,7]
[322437704,1713000644992,-500.0,0.00039499,7]
[322437705,1713000645014,-151.0,0.00039499,2]
[322437706,1713000645037,-151.0,0.00039499,2]
[322437707,1713000645059,-151.0,0.00039499,2]
[322437708,1713000645077,-399.308516,0.00039499,2]
[322437709,1713000645294,-399.308516,0.00039499,2]
[322437710,1713000645303,-500.0,0.00039499,7]
[322437711,1713000645313,-151.0,0.00039499,2]
[322437712,1713000645323,-500.0,0.00039499,7]
[322437713,1713000645333,-508.45342757,0.00039499,7]
[322437714,1713000645436,-500.0,0.000395,7]
[322437715,1713000645446,-500.0,0.000395,7]
[322437716,1713000645460,-500.0,0.000395,7]
[322437717,1713000645469,-500.0,0.000395,7]
[322437718,1713000645479,-500.0,0.000395,7]
[322437719,1713000645490,-1756.68,0.000395,7]
[322437720,1713000645500,-500.0,0.000395,7]
[322437721,1713000645510,-436.0,0.000395,2]
[322437722,1713000645520,-154.9721438,0.00039541,7]
[322437723,1713000645530,-157.31099709,0.00039638,7]
[322437724,1713000645541,-500.0,0.000399,2]
[322437725,1713000645551,-1553.35590445,0.000399,10]
[322437726,1713000645562,-151.603787,0.000399,2]
[322437727,1713000645572,-168.7206,0.000399,2]
[322437728,1713000645581,-150.5,0.0003997,35]
[322437729,1713000645591,-150.5,0.0003998,35]
[322437730,1713000645602,-185.0784515,0.00039989,30]
[322437731,1713000645613,-160.0,0.00039989,30]
[322437732,1713000645624,-219.99718885,0.00039989,4]
[322437733,1713000645634,-233.958041,0.00039989,2]
[322437734,1713000645644,-233.958041,0.00039989,2]
[322437735,1713000645655,-500.0,0.0003999,5]
[322437736,1713000645664,-156956.98366915,0.0003999,2]
[322437751,1713000646873,-155.05116689,0.00033974,4]
[322437752,1713000646884,-269.91414144,0.00035616,7]
[322437906,1713001838115,-377.41634442,0.00027396,2]
[322437907,1713001838124,-159.858928,0.00027397,2]
[322437908,1713001838133,-162.420071,0.00027397,2]
[322437909,1713001838143,-157.31099709,0.00033968,7]
[322437910,1713001838152,-596.67479795,0.00035,2]
[322437911,1713001838161,-154.9721438,0.00035152,7]
[322437912,1713001838170,-162.420071,0.00035225,2]
[322437913,1713001838179,-154.9721438,0.00035278,7]
[322437914,1713001838188,-400.0,0.00035499,2]
[322437915,1713001838198,-10101.0,0.000355,2]
[322437916,1713001838207,-153.05200403,0.00035515,7]
[322437917,1713001838216,-222.83351196,0.00035516,2]
[322437918,1713001838225,-279.88294856,0.00035614,4]
[322437919,1713001838235,-155.56715355,0.00035614,4]
[322437920,1713001838244,-160.93940628,0.00035614,2]
[322437921,1713001838253,-2647.26092283,0.00035614,4]
[322437922,1713001838262,-212.00377151,0.00035614,4]
[322437923,1713001838272,-202.95749,0.00035614,4]
[322437924,1713001838281,-514.06705654,0.00035614,4]
[322437925,1713001838291,-219.99718885,0.00035614,4]
[322437926,1713001838300,-283.64420894,0.00035614,4]
[322437927,1713001838311,-243.21556445,0.00035614,4]
[322437928,1713001838320,-181.3448431,0.00035614,5]
[322437929,1713001838330,-1661.93121422,0.00035615,4]
[322437930,1713001838339,-432.47188751,0.00035615,4]
[322437931,1713001838349,-155.25842455,0.00035615,4]
[322437932,1713001838359,-455.76,0.00035615,2]
[322437933,1713001838368,-455.76,0.00035615,2]
[322437934,1713001838378,-455.76,0.00035615,2]
[322437935,1713001838387,-455.76,0.00035615,2]
[322437936,1713001838396,-455.76,0.00035615,2]
[322437937,1713001838406,-455.76,0.00035615,2]
[322437938,1713001838415,-455.76,0.00035615,2]
[322437939,1713001838424,-30162.83192706,0.00035616,5]
[322437940,1713001838433,-1014.05805107,0.00035616,4]
[322437941,1713001838444,-537.43813191,0.00035616,7]
[322437942,1713001838453,-500.0,0.00035616,7]
[322437943,1713001838462,-154.87609912,0.00035616,7]
[322437944,1713001838472,-500.0,0.00035616,7]
[322437945,1713001838481,-500.0,0.00035616,7]
[322437946,1713001838490,-500.0,0.00035616,7]
[322437947,1713001838499,-884.78,0.00035616,7]
[322437948,1713001838509,-510.51005403,0.00035616,7]
[322437949,1713001838518,-502.10542521,0.00035616,7]
[322437950,1713001838527,-500.0,0.00035616,7]
[322437951,1713001838537,-500.78951343,0.00035616,7]
[322437952,1713001838546,-359.50186365,0.00035616,20]
[322437953,1713001838555,-500.0,0.00035616,7]
[322437954,1713001838564,-3767.53770097,0.00035616,4]
[322437955,1713001838573,-276.22880515,0.00035616,2]
[322437956,1713001838582,-190.13793507,0.00035616,4]
[322437957,1713001838593,-500.0,0.00035616,7]
[322437958,1713001838601,-1566.2612075,0.00035616,4]
[322437959,1713001838611,-169.64659078,0.00035616,7]
[322437960,1713001838620,-18625.42501199,0.00035616,4]
[322437961,1713001838629,-500.0,0.00035616,7]
[322437962,1713001838638,-500.0,0.00035616,7]
[322437963,1713001838647,-500.0,0.00035616,7]
[322437964,1713001838657,-500.0,0.00035616,7]
[322437965,1713001838666,-500.0,0.00035616,7]
[322437966,1713001838675,-155.04651395,0.00035616,2]
[322437967,1713001838684,-500.0,0.00035616,7]
[322437968,1713001838693,-259.00466111,0.00035616,7]
[322437969,1713001838702,-500.0,0.00035616,7]
[322437970,1713001838711,-500.0,0.00035616,7]
[322437971,1713001838720,-505.28751995,0.00035616,7]
[322437972,1713001838729,-500.0,0.00035616,7]
[322437973,1713001838738,-500.0,0.00035616,7]
[322437974,1713001838747,-500.0,0.00035616,7]
[322437975,1713001838756,-500.0,0.00035616,7]
[322437976,1713001838766,-500.0,0.00035616,7]
[322437977,1713001838775,-500.0,0.00035616,7]
[322437978,1713001838784,-500.0,0.00035616,7]
[322437979,1713001838794,-500.0,0.00035616,7]
[322437980,1713001838803,-500.0,0.00035616,7]
[322437981,1713001838816,-165.52530305,0.00035616,7]
[322437982,1713001838825,-500.0,0.00035616,7]
[322437983,1713001838834,-500.0,0.00035616,7]
[322437984,1713001838845,-460.94755623,0.00035616,7]
[322437985,1713001838854,-500.0,0.00035616,7]
[322437986,1713001838863,-500.0,0.00035616,7]
[322437987,1713001838873,-500.0,0.00035616,7]
[322437988,1713001838882,-500.79208165,0.00035616,7]
[322437989,1713001838892,-500.0,0.00035616,7]
[322437990,1713001838901,-500.0,0.00035616,7]
[322437991,1713001838910,-500.0,0.00035616,7]
[322437992,1713001838919,-500.0,0.00035616,7]
[322437993,1713001839065,-500.0,0.00035616,7]
[322437994,1713001839074,-500.0,0.00035616,7]
[322437995,1713001839085,-500.0,0.00035616,7]
[322437996,1713001839096,-1027.17,0.00035616,7]
[322437997,1713001839105,-500.0,0.00035616,7]
[322437998,1713001839114,-500.0,0.00035616,7]
[322437999,1713001839123,-502.1843144,0.00035616,7]
[322438000,1713001839134,-500.0,0.00035616,7]
[322438001,1713001839143,-500.0,0.00035616,7]
[322438002,1713001839153,-505.10434053,0.00035616,7]
[322438003,1713001839162,-500.0,0.00035616,7]
[322438004,1713001839173,-500.0,0.00035616,7]
[322438005,1713001839182,-358.09,0.00035616,2]
[322438006,1713001839191,-508.47353412,0.00035616,7]
[322438007,1713001839201,-500.0,0.00035616,7]
[322438008,1713001839210,-500.0,0.00035616,14]
[322438009,1713001839219,-500.0,0.00035616,7]
[322438010,1713001839230,-500.0,0.00035616,7]
[322438011,1713001839240,-500.0,0.00035616,7]
[322438012,1713001839249,-500.0,0.00035616,7]
[322438013,1713001839258,-250.99373887,0.00035616,7]
[322438014,1713001839267,-500.0,0.00035616,7]
[322438015,1713001839276,-500.0,0.00035616,7]
[322438016,1713001839286,-188.72163887,0.00035616,7]
[322438017,1713001839295,-500.0,0.00035616,7]
[322438018,1713001839305,-500.0,0.00035616,7]
[322438019,1713001839315,-500.0,0.00035616,7]
[322438021,1713001839324,-385.03819322,0.00035616,7]
[322438022,1713001839334,-2717.77,0.00035616,7]
[322438023,1713001839344,-500.0,0.00035616,7]
[322438024,1713001839353,-500.0,0.00035616,7]
[322438025,1713001839364,-508.62523054,0.00035616,7]
[322438026,1713001839375,-1416.38,0.00035616,7]
[322438028,1713001839384,-500.0,0.00035616,7]
[322438029,1713001839393,-414.88068387,0.00035616,7]
[322438030,1713001839402,-982.14,0.00035616,7]
[322438033,1713001839411,-500.0,0.00035616,7]
[322438035,1713001839421,-500.0,0.00035616,7]
[322438036,1713001839430,-507.29060411,0.00035616,7]
[322438037,1713001839441,-500.0,0.00035616,7]
[322438038,1713001839451,-500.0,0.00035616,7]
[322438039,1713001839460,-600.75248345,0.00035616,7]
[322438040,1713001839470,-500.0,0.00035616,7]
[322438041,1713001839479,-500.0,0.00035616,7]
[322438042,1713001839489,-500.0,0.00035616,7]
[322438043,1713001839498,-500.0,0.00035616,7]
[322438045,1713001839507,-500.0,0.00035616,7]
[322438047,1713001839517,-500.0,0.00035616,7]
[322438049,1713001839526,-500.0,0.00035616,7]
[322438050,1713001839535,-500.0,0.00035616,7]
[322438051,1713001839544,-500.0,0.00035616,7]
[322438052,1713001839553,-500.0,0.00035616,7]
[322438053,1713001839562,-412.49906291,0.00035616,7]
[322438054,1713001839571,-500.0,0.00035616,7]
[322438055,1713001839580,-500.0,0.00035616,7]
[322438056,1713001839591,-500.0,0.00035616,7]
[322438057,1713001839600,-500.0,0.00035616,7]
[322438058,1713001839609,-500.0,0.00035616,7]
[322438059,1713001839619,-500.0,0.00035616,7]
[322438060,1713001839628,-500.0,0.00035616,7]
[322438061,1713001839637,-500.0,0.00035616,7]
[322438062,1713001839646,-500.0,0.00035616,7]
[322438063,1713001839655,-500.0,0.00035616,7]
[322438064,1713001839664,-500.0,0.00035616,7]
[322438065,1713001839674,-620.05184602,0.00035616,7]
[322438067,1713001839683,-394.69421239,0.00035616,7]
[322438069,1713001839692,-183.29234504,0.00035616,7]
[322438071,1713001839701,-500.0,0.00035616,7]
[322438073,1713001839710,-502.09780536,0.00035616,7]
[322438075,1713001839719,-375.99736236,0.00035616,7]
[322438076,1713001839728,-500.0,0.00035616,7]
[322438077,1713001839736,-524.41683232,0.00035616,7]
[322438078,1713001839746,-488.13668854,0.00035616,7]
[322438079,1713001839754,-500.0,0.00035616,7]
[322438080,1713001839763,-500.0,0.00035616,7]
[322438081,1713001839773,-500.0,0.00035616,7]
[322438082,1713001839781,-500.0,0.00035616,7]
[322438083,1713001839790,-500.0,0.00035616,7]
[322438085,1713001839799,-500.0,0.00035616,7]
[322438087,1713001839809,-500.0,0.00035616,7]
[322438089,1713001839820,-500.0,0.00035616,7]
[322438091,1713001839829,-502.23498175,0.00035616,7]
[322438093,1713001839841,-500.0,0.00035616,7]
[322438095,1713001839850,-554.51550462,0.00035616,7]
[322438097,1713001839859,-505.95434018,0.00035616,7]
[322438099,1713001839868,-501.72219097,0.00035616,7]
[322438101,1713001839877,-500.0,0.00035616,7]
[322438102,1713001839885,-500.0,0.00035616,7]
[322438103,1713001839896,-500.0,0.00035616,7]
[322438105,1713001839904,-500.0,0.00035616,7]
[322438107,1713001839913,-504.41807224,0.00035616,7]
[322438109,1713001839922,-500.0,0.00035616,7]
[322438110,1713001839931,-500.0,0.00035616,7]
[322438112,1713001839940,-500.0,0.00035616,7]
[322438114,1713001839949,-500.0,0.00035616,7]
[322438116,1713001839957,-500.0,0.00035616,7]
[322438118,1713001839967,-576.14087697,0.00035616,7]
[322438120,1713001839976,-680.98,0.00035616,7]
[322438122,1713001839985,-504.24950144,0.00035616,7]
[322438124,1713001839994,-4545.46,0.00035616,7]
[322438125,1713001840003,-500.0,0.00035616,7]
[322438126,1713001840012,-500.0,0.00035616,7]
[322438127,1713001840022,-263.05878435,0.00035616,7]
[322438128,1713001840031,-501.98167046,0.00035616,7]
[322438129,1713001840040,-504.84227026,0.00035616,7]
[322438130,1713001840049,-512.9696895,0.00035616,7]
[322438131,1713001840058,-500.0,0.00035616,7]
[322438132,1713001840067,-500.0,0.00035616,7]
[322438133,1713001840076,-500.0,0.00035616,7]
[322438134,1713001840085,-500.0,0.00035616,7]
[322438135,1713001840095,-1491.88,0.00035616,7]
[322438136,1713001840105,-500.0,0.00035616,7]
[322438137,1713001840113,-500.0,0.00035616,7]
[322438138,1713001840122,-500.0,0.00035616,7]
[322438139,1713001840131,-808.46,0.00035616,7]